Cogmind - Beta 11.1 @@@ ROGUE MODE // 2022.09.14 @ 17:57:53 Player: Flerik Result: Escaped! Performance ------------- Evolutions (9) 4500 Regions Visited (16) 3200 Robots Destroyed (6) 30 Value Destroyed (184) 184 Prototype IDs (34) 680 Alien Tech Used (0) 0 Bonus (6188) 6188 TOTAL SCORE: 14782 Bonus ------- Aligned with FarCom 300 Win 3000 Win Speed 2888 Cogmind --------- Core Integrity 1509/1600 Matter 183/300 Energy 692/700 System Corruption 4% Temperature Cool (8) Movement Flying (26) Location To Epsilon Eridani Parts ------- > --- POWER (3) -------- Micro Antimatter Reactor Micro Antimatter Reactor > --- PROPULSION (7) --- Field Propulsion Array Field Propulsion Array Field Propulsion Array Experimental Q-thruster > --- UTILITY (13) ----- Advanced Energy Well Gravity Neutralizer Advanced Signal Interpreter Improved Melee Analysis Suite Advanced Melee Analysis Suite Target Analyzer Transmission Jammer Advanced ECM Suite Hacking Suite Improved Hacking Suite System Shield System Shield Experimental System Shield > --- WEAPON (2) ------- Power Maul > --- INVENTORY (5) ---- Light Quantum Reactor Impulse Thruster Improved Diametric Drive Transmission Jammer Field Lobotomy Kit (5) Peak State ------------ > --- POWER ------------ Micro Antimatter Reactor Micro Antimatter Reactor > --- PROPULSION ------- Field Propulsion Array Field Propulsion Array Field Propulsion Array Improved Diametric Drive > --- UTILITY ---------- Experimental Cooling System Advanced Energy Well Gravity Neutralizer Advanced Signal Interpreter Improved Melee Analysis Suite Advanced Melee Analysis Suite Target Analyzer Transmission Jammer Advanced ECM Suite Hacking Suite Improved Hacking Suite System Shield Experimental System Shield > --- WEAPON ----------- Power Maul > --- INVENTORY -------- Light Quantum Reactor Impulse Thruster Transmission Jammer Field Lobotomy Kit [Rating: 140] Favorites ----------- Power Light Ion Engine Engine Light Ion Engine Power Core Light Neutrino Core Reactor Micro Antimatter Reactor Propulsion Cesium-ion Thruster Leg Aluminum Leg Flight Unit Cesium-ion Thruster Utility Target Analyzer Device Transmission Jammer Storage Small Storage Unit Processor Target Analyzer Hackware Hacking Suite Weapon Power Maul Energy Gun EM Pulse Gun Ballistic Gun Light Assault Rifle Launcher Long-range Missile Launcher Special Weapon Plasma Flamer Impact Weapon Power Maul Special Melee Weapon Improved Datajack Build | -11 -10 -10 -10 -9 -8 -7 -7 -7 -6 -5 -4 -4 -4 -3 -2 -1 ------- Run | Scr Mat Min Exi Min Mat Fac Was Fac Fac Fac Fac Upp Upp Res Res Acc Slots Evolved 18 | . . . . . 4 2 . . 2 2 2 . . 2 2 2 Power 2 | . . . . . . . . . . . 1 . . . . 1 Propulsion 5 | . . . . . 2 . . . . 1 . . . 1 1 . Utility 11 | . . . . . 2 2 . . 2 1 1 . . 1 1 1 Weapon . | . . . . . . . . . . . . . . . . . Parts Attached 87 | 6 . 1 . 3 9 8 2 4 12 5 . . . 8 14 15 Power 12 | 1 . . . . 1 1 . . 1 1 . . . 1 5 1 Engine 7 | 1 . . . . 1 1 . . 1 . . . . 1 2 . Core 2 | . . . . . . . . . . 1 . . . . 1 . Reactor 3 | . . . . . . . . . . . . . . . 2 1 Propulsion 31 | 2 . . . 3 4 1 . 2 5 2 . . . 3 3 6 Treads . | . . . . . . . . . . . . . . . . . Leg 3 | 2 . . . . 1 . . . . . . . . . . . Wheel . | . . . . . . . . . . . . . . . . . Hover . | . . . . . . . . . . . . . . . . . Flight 28 | . . . . 3 3 1 . 2 5 2 . . . 3 3 6 Utility 28 | 1 . 1 . . . 3 2 1 5 2 . . . 3 4 6 Device 9 | . . 1 . . . 1 . . 2 . . . . . 2 3 Storage 2 | 1 . . . . . . . . . . . . . 1 . . Processor 11 | . . . . . . 2 2 . 2 1 . . . 1 2 1 Hackware 6 | . . . . . . . . 1 1 1 . . . 1 . 2 Protection . | . . . . . . . . . . . . . . . . . Artifact . | . . . . . . . . . . . . . . . . . Weapon 16 | 2 . . . . 4 3 . 1 1 . . . . 1 2 2 Energy Gun 5 | 1 . . . . 2 2 . . . . . . . . . . Energy Cannon . | . . . . . . . . . . . . . . . . . Ballistic Gun 3 | 1 . . . . 1 . . 1 . . . . . . . . Ballistic Cannon . | . . . . . . . . . . . . . . . . . Launcher 1 | . . . . . . . . . . . . . . . 1 . Special Weapon 1 | . . . . . 1 . . . . . . . . . . . Impact Weapon 4 | . . . . . . 1 . . 1 . . . . . 1 1 Slashing Weapon . | . . . . . . . . . . . . . . . . . Piercing Weapon . | . . . . . . . . . . . . . . . . . Special Melee Weapon 2 | . . . . . . . . . . . . . . 1 . 1 Unidentified Prototypes 11 | . . 1 . . 1 1 . . . 1 . . . 2 2 3 Parts Lost 24 | . . . . 5 8 . . . . . . . . 1 6 4 Power 3 | . . . . . 1 . . . . . . . . . 1 1 Propulsion 8 | . . . . 4 1 . . . . . . . . 1 1 1 Utility 6 | . . . . . 2 . . . . . . . . . 4 . Weapon 7 | . . . . 1 4 . . . . . . . . . . 2 Highest Loss Streak 7 | . . . . 3 7 . . . . . . . . 1 3 4 To Critical Strikes . | . . . . . . . . . . . . . . . . . Average Slot Usage (%) 84 | . 85 96 100 66 36 43 67 83 94 98 89 89 89 95 86 85 Engine 6 | . 14 14 14 2 5 5 7 7 6 2 . . . 4 2 1 Reactor 1 | . . . . . . . . . . . . . . . 3 6 Leg 8 | . 28 28 28 4 6 . . . . . . . . . . . Flight 16 | . . . . 23 9 12 15 28 25 29 26 26 26 28 25 20 Device 9 | . . 10 14 14 5 6 7 7 10 11 10 10 10 9 6 13 Storage 5 | . 14 14 14 14 3 . . . . . . . . 2 4 4 Processor 13 | . . . . . . 10 28 30 30 23 21 21 21 19 17 17 Hackware 7 | . . . . . . . . 7 9 14 15 15 15 15 15 16 Energy Gun 4 | . 14 14 14 2 3 . . . . . . . . . . . Ballistic Gun 5 | . 14 14 14 4 2 . . . 6 5 5 5 5 . . . Impact Weapon 2 | . . . . . . 5 7 . 2 5 5 5 5 4 3 1 Special Melee Weapon 1 | . . . . . . . . . . . . . . 3 4 2 Naked Turns 1 | . . . . . 1 . . . . . . . . . . . Heaviest Build 36 | 11 11 12 12 12 16 9 9 6 11 16 16 16 16 20 26 36 Greatest Support 64 | 20 20 20 20 20 10 9 9 19 17 28 28 28 28 35 48 64 Greatest Overweight (x) 2 | . . . . 1 1 2 . . 1 . . . . . . . Average Overweight (x) . | . . . . . . . . . . . . . . . . . Largest Inventory Capacity 8 | 8 8 8 8 8 8 5 5 5 5 5 5 5 5 5 5 5 Average Capacity 5 | 6 8 8 8 8 6 5 5 5 5 5 5 5 5 5 5 5 Most Carried 8 | 2 4 8 8 8 7 5 4 5 5 5 4 4 4 5 5 5 Average Carried 5 | 1 2 7 7 7 4 4 4 4 4 4 4 4 4 4 4 4 Final Capacity 8 | 8 8 8 8 8 5 5 5 5 5 5 5 5 5 5 5 5 Final Carried 8 | 2 4 8 8 7 5 5 4 4 5 4 4 4 4 4 4 5 Class Distribution -------------------- 43% | Hacker-Sprinter 38% | Mutant 12% | Sprinter Dominant Class ---------------- Mutant | -10/Materials Mutant | -10/Mines Mutant | -10/Exiles Scout | -9/Mines Mutant | -8/Materials Mutant | -7/Factory Sprinter | -7/Waste Sprinter | -7/Factory Sprinter | -6/Factory Hacker-Sprinter | -5/Factory Hacker-Sprinter | -4/Factory Hacker-Sprinter | -4/Upper Caves Hacker-Sprinter | -4/Upper Caves Hacker-Sprinter | -3/Research Hacker-Sprinter | -2/Research Hacker-Sprinter | -1/Access Resources | -11 -10 -10 -10 -9 -8 -7 -7 -7 -6 -5 -4 -4 -4 -3 -2 -1 ----------- Run | Scr Mat Min Exi Min Mat Fac Was Fac Fac Fac Fac Upp Upp Res Res Acc Matter Collected 921 | 233 15 12 . . 69 . . 67 170 127 . . . . 180 48 Remotely . | . . . . . . . . . . . . . . . . . Salvage Created 142 | . 15 12 . . . . . 67 . . . . . . . 48 Parts 10 | . 2 4 . . . . . 3 . . . . . . . 1 Haulers Intercepted . | . . . . . . . . . . . . . . . . . Recyclers Shooed . | . . . . . . . . . . . . . . . . . Parts Field Recycled . | . . . . . . . . . . . . . . . . . Retrieved Matter . | . . . . . . . . . . . . . . . . . Parts Self-Destructed 3 | . . . . . . . . . . . . 3 . . . . Prevented 1 | . . . . . . . . . . . . 1 . . . . Kills | -11 -10 -10 -10 -9 -8 -7 -7 -7 -6 -5 -4 -4 -4 -3 -2 -1 ------- Run | Scr Mat Min Exi Min Mat Fac Was Fac Fac Fac Fac Upp Upp Res Res Acc Combat Hostiles Destroyed 6 | . 1 3 . . . . . 1 . . . . . . . 1 Guns 3 | . 1 1 . . . . . 1 . . . . . . . . AOE 2 | . . 2 . . . . . . . . . . . . . . Classes Destroyed 3 | . 1 . . . . . . 1 . . . . . . . 1 Swarmer 4 | . 1 3 . . . . . . . . . . . . . . Sentry 1 | . . . . . . . . 1 . . . . . . . . Programmer 1 | . . . . . . . . . . . . . . . . 1 Best Kill Streak 3 | . 1 3 . . . . . 1 . . . . . . . 1 Combat Bots Only 3 | . 1 3 . . . . . 1 . . . . . . . 1 Max Kills in Single Turn 2 | . 1 2 . . . . . 1 . . . . . . . 1 Gunslinging . | . . . . . . . . . . . . . . . . . Exploded 2 | . . 2 . . . . . . . . . . . . . . Melee . | . . . . . . . . . . . . . . . . . Uniques/NPCs Destroyed . | . . . . . . . . . . . . . . . . . Combat | -11 -10 -10 -10 -9 -8 -7 -7 -7 -6 -5 -4 -4 -4 -3 -2 -1 -------- Run | Scr Mat Min Exi Min Mat Fac Was Fac Fac Fac Fac Upp Upp Res Res Acc Damage Taken 2760 | . . 53 . 464 885 . . 144 . 48 . . . 133 541 492 Core 878 | . . . . 109 360 . . 39 . 25 . . . 31 223 91 Absorbed by Shields . | . . . . . . . . . . . . . . . . . Regen/Repaired (Parts) 53 | . . . . . . 33 . . 20 . . . . . . . Core Remaining (%) 85 | 100 . . . 56 34 . . 94 100 97 . . 100 97 84 94 Volleys Fired 24 | . 4 3 . . 10 . . 5 . . . . . . 2 . Largest 2 | . 2 2 . . 2 . . 1 . . . . . . 1 . Hottest 100 | . 60 60 . . 100 . . 23 . . . . . . 43 . Shots Fired 33 | . 8 6 . . 12 . . 5 . . . . . . 2 . Gun 30 | . 8 6 . . 11 . . 5 . . . . . . . . Cannon . | . . . . . . . . . . . . . . . . . Launcher 2 | . . . . . . . . . . . . . . . 2 . Special 1 | . . . . . 1 . . . . . . . . . . . Kinetic 14 | . 4 3 . . 2 . . 5 . . . . . . . . Thermal 7 | . . . . . 7 . . . . . . . . . . . Explosive 2 | . . . . . . . . . . . . . . . 2 . Electromagnetic 10 | . 4 3 . . 3 . . . . . . . . . . . Robot Hit Streak 15 | . 3 1 . . 10 . . 15 . . . . . . . . Robot Miss Streak 4 | . 3 4 . . 1 . . . . . . . . . . . Penetration Max . | . . . . . . . . . . . . . . . . . Secondary Targets . | . . . . . . . . . . . . . . . . . Shots Hit Robots 36 | . 5 1 . . 11 . . 5 . . . . . 3 5 6 Core Hits 12 | . 3 3 . . 3 . . 3 . . . . . . . . Critical Kills . | . . . . . . . . . . . . . . . . . Critical Parts Destroyed 2 | . . . . . . . . . . . . . . . . 2 Critical Strikes 2 | . . . . . . . . . . . . . . . . 2 Smash 2 | . . . . . . . . . . . . . . . . 2 Melee Attacks 16 | . . . . . . . . . . . . . . 3 6 7 Impact 5 | . . . . . . . . . . . . . . . . 5 Slashing . | . . . . . . . . . . . . . . . . . Piercing . | . . . . . . . . . . . . . . . . . Sneak Attacks 9 | . . . . . . . . . . . . . . 3 4 2 Combat Hostiles . | . . . . . . . . . . . . . . . . . Follow-up Attacks . | . . . . . . . . . . . . . . . . . Damage Inflicted 660 | . 54 128 . . 188 . . 74 . . . . . . . 216 Guns 293 | . 54 11 . . 154 . . 74 . . . . . . . . Cannons . | . . . . . . . . . . . . . . . . . Explosions 117 | . . 117 . . . . . . . . . . . . . . Melee 216 | . . . . . . . . . . . . . . . . 216 Ramming 22 | . . . . . 22 . . . . . . . . . . . Kinetic 108 | . 24 . . . 10 . . 74 . . . . . . . . Thermal 232 | . . 117 . . 115 . . . . . . . . . . . Explosive . | . . . . . . . . . . . . . . . . . Electromagnetic 82 | . 30 11 . . 41 . . . . . . . . . . . Impact 216 | . . . . . . . . . . . . . . . . 216 Slashing . | . . . . . . . . . . . . . . . . . Piercing . | . . . . . . . . . . . . . . . . . Highest Corruption 8 | . . . . 4 . . 8 8 . . . . . 2 1 4 Average Corruption 2 | . . . . 4 . . 8 8 . . . . . 2 1 3 Corruption Purged . | . . . . . . . . . . . . . . . . . Corruption Blocked . | . . . . . . . . . . . . . . . . . Effects 15 | . . . . 2 . . 1 6 . . . . . . 3 3 Message Errors 3 | . . . . . . . . 1 . . . . . . 1 1 Matter Fused 2 | . . . . . . . . 2 . . . . . . . . Heat Flow Errors 2 | . . . . . . . . 1 . . . . . . . 1 Energy Discharges 3 | . . . . . . . . 1 . . . . . . 1 1 Parts Rejected 2 | . . . . . . . 1 1 . . . . . . . . Data Loss (minor) 3 | . . . . 2 . . . . . . . . . . 1 . Overload Shots . | . . . . . . . . . . . . . . . . . Overflow Damage 142 | . . 24 . . . . . . . . . . . . . 118 Projectiles . | . . . . . . . . . . . . . . . . . Explosions 24 | . . 24 . . . . . . . . . . . . . . Melee 118 | . . . . . . . . . . . . . . . . 118 Knockbacks . | . . . . . . . . . . . . . . . . . Impact . | . . . . . . . . . . . . . . . . . Kinetic . | . . . . . . . . . . . . . . . . . Secondary . | . . . . . . . . . . . . . . . . . Self-Inflicted Damage 31 | . . 29 . . 2 . . . . . . . . . . . Shots 1 | . . 1 . . . . . . . . . . . . . . Rammed 1 | . . . . . 1 . . . . . . . . . . . Targets Rammed 15 | . . . . . 15 . . . . . . . . . . . Kicked 14 | . . . . . 14 . . . . . . . . . . . Crushed . | . . . . . . . . . . . . . . . . . Highest Temperature 457 | . 20 52 . 24 108 . . 93 . 1 . . . 239 457 112 Average Temperature 87 | . 13 35 . 6 44 . . 38 . 1 . . . 107 99 46 Received Heat Transfer 698 | . . . . 140 378 . . 54 . 9 . . . . 90 27 Effects 6 | . . . . . . . . . . . . . . 1 5 . Shutdowns 2 | . . . . . . . . . . . . . . . 2 . Energy Bleed 1 | . . . . . . . . . . . . . . 1 . . Interference 3 | . . . . . . . . . . . . . . . 3 . Siege Activations . | . . . . . . . . . . . . . . . . . Robots Corrupted . | . . . . . . . . . . . . . . . . . Combat Hostiles . | . . . . . . . . . . . . . . . . . Parts Fried 1 | . . . . . . . . . . . . . . . . 1 Impact Corruptions 3 | . . . . . . . . . . . . . . . . 3 Robots Melted . | . . . . . . . . . . . . . . . . . Combat Hostiles . | . . . . . . . . . . . . . . . . . Parts Melted . | . . . . . . . . . . . . . . . . . Heat Transferred 452 | . . 150 . . 302 . . . . . . . . . . . Parts Sabotaged . | . . . . . . . . . . . . . . . . . Parts Stolen . | . . . . . . . . . . . . . . . . . Parts Stripped . | . . . . . . . . . . . . . . . . . Power Chain Reactions . | . . . . . . . . . . . . . . . . . Missiles Intercepted . | . . . . . . . . . . . . . . . . . Alert | -11 -10 -10 -10 -9 -8 -7 -7 -7 -6 -5 -4 -4 -4 -3 -2 -1 ------- Run | Scr Mat Min Exi Min Mat Fac Was Fac Fac Fac Fac Upp Upp Res Res Acc Peak Influence 174 | . 75 149 . 15 150 101 50 80 77 107 51 . . 26 147 174 Initial 88 | . . 28 . . . 67 35 35 39 37 51 . . 21 14 88 Average 59 | . 54 94 . 1 11 80 38 36 62 71 51 . . 20 28 118 Maximum Alert Level . | . . . . . . . . . . . . . . . . . Low Security (%) 100 | 100 100 100 . 100 100 100 100 100 100 100 100 . . 100 100 100 Level 1 . | . . . . . . . . . . . . . . . . . Level 2 . | . . . . . . . . . . . . . . . . . Level 3 . | . . . . . . . . . . . . . . . . . Level 4 . | . . . . . . . . . . . . . . . . . Level 5 . | . . . . . . . . . . . . . . . . . High Security . | . . . . . . . . . . . . . . . . . Max Security . | . . . . . . . . . . . . . . . . . Squads Dispatched 7 | . . . . . 1 1 . 1 . 1 . . . . 2 1 Investigation 2 | . . . . . . 1 . 1 . . . . . . . . Extermination 3 | . . . . . . . . . . 1 . . . . 1 1 Reinforcement 2 | . . . . . 1 . . . . . . . . . 1 . Assault . | . . . . . . . . . . . . . . . . . Garrison . | . . . . . . . . . . . . . . . . . Intercept . | . . . . . . . . . . . . . . . . . Searches Triggered . | . . . . . . . . . . . . . . . . . Construction Impeded . | . . . . . . . . . . . . . . . . . Haulers Reinforced . | . . . . . . . . . . . . . . . . . Active Scanning Responses . | . . . . . . . . . . . . . . . . . Cargo Convoy Interrupts . | . . . . . . . . . . . . . . . . . Stealth | -11 -10 -10 -10 -9 -8 -7 -7 -7 -6 -5 -4 -4 -4 -3 -2 -1 --------- Run | Scr Mat Min Exi Min Mat Fac Was Fac Fac Fac Fac Upp Upp Res Res Acc Distress Signals 2 | . 1 . . . . . . . . 1 . . . . . . Communications Jammed 1 | . . . . . . . . . . . . . . . 1 . Distress Signals 1 | . . . . . . . . . . . . . . . 1 . Times Spotted 88 | . 3 3 . 21 14 5 6 3 . 6 1 1 2 1 17 5 Peak Tracking Total 20 | . 4 3 . 20 8 4 6 4 . 5 1 2 2 1 7 2 Tactical Retreats 11 | . 1 . . 2 4 . . . . 1 . . . . 2 1 Traps | -11 -10 -10 -10 -9 -8 -7 -7 -7 -6 -5 -4 -4 -4 -3 -2 -1 ------- Run | Scr Mat Min Exi Min Mat Fac Was Fac Fac Fac Fac Upp Upp Res Res Acc Traps Triggered 8 | . . . . . . 3 . 1 . . . . . 1 2 1 Indirectly . | . . . . . . . . . . . . . . . . . Trap Hack Attempts . | . . . . . . . . . . . . . . . . . Triggered . | . . . . . . . . . . . . . . . . . Disarmed . | . . . . . . . . . . . . . . . . . Reprogrammed . | . . . . . . . . . . . . . . . . . Reused . | . . . . . . . . . . . . . . . . . Traps Extracted . | . . . . . . . . . . . . . . . . . Installed . | . . . . . . . . . . . . . . . . . Triggered 2 | . . . . . . . . . . . . 2 . . . . Machines | -11 -10 -10 -10 -9 -8 -7 -7 -7 -6 -5 -4 -4 -4 -3 -2 -1 ---------- Run | Scr Mat Min Exi Min Mat Fac Was Fac Fac Fac Fac Upp Upp Res Res Acc Machines Disabled 1 | . . 1 . . . . . . . . . . . . . . Max in Single Turn 1 | . . 1 . . . . . . . . . . . . . . Garrison Access 1 | . . . . . . . . . . . . . . . . 1 Machines Sabotaged . | . . . . . . . . . . . . . . . . . Garrisons Compromised . | . . . . . . . . . . . . . . . . . Overloaded Fab Kills . | . . . . . . . . . . . . . . . . . Hacking | -11 -10 -10 -10 -9 -8 -7 -7 -7 -6 -5 -4 -4 -4 -3 -2 -1 --------- Run | Scr Mat Min Exi Min Mat Fac Was Fac Fac Fac Fac Upp Upp Res Res Acc Machines Accessed 29 | . . . 4 . . 2 . 2 4 3 1 1 . 2 2 8 Terminals 16 | . . . . . . 1 . 1 2 2 1 . . 1 2 6 Fabricators . | . . . . . . . . . . . . . . . . . Repair Stations 2 | . . . . . . 1 . . 1 . . . . . . . Recycling Units 1 | . . . . . . . . . . . . . . . . 1 Scanalyzers 1 | . . . . . . . . 1 . . . . . . . . Garrison Access 4 | . . . . . . . . . 1 1 . . . 1 . 1 Total Hacks 59 | . . . 27 . . 3 . 3 6 4 1 1 . 3 2 9 Successful 40 | . . . 27 . . 2 . 1 4 1 . 1 . . 1 3 Failed 19 | . . . . . . 1 . 2 2 3 1 . . 3 1 6 Catastrophic 5 | . . . . . . . . 1 . 2 . . . 1 . 1 Database Lockouts . | . . . . . . . . . . . . . . . . . Manual 14 | . . . 1 . . 1 . 1 2 2 . . . 2 1 4 Terminals 17 | . . . . . . 1 . 1 2 2 1 . . 2 2 6 Fabricators . | . . . . . . . . . . . . . . . . . Repair Stations 5 | . . . . . . 2 . . 3 . . . . . . . Recycling Units 1 | . . . . . . . . . . . . . . . . 1 Scanalyzers 2 | . . . . . . . . 2 . . . . . . . . Garrison Access 6 | . . . . . . . . . 1 2 . . . 1 . 2 Terminal Hacks 32 | . . . 27 . . . . . 1 . . 1 . . 1 2 Record 27 | . . . 26 . . . . . . . . . . . . 1 Open Door 2 | . . . . . . . . . . . . 1 . . . 1 Open DSF 2 | . . . . . . . . . 1 . . . . . 1 . EX-Prototype ID Bank 1 | . . . 1 . . . . . . . . . . . . . Fabricator Hacks . | . . . . . . . . . . . . . . . . . Repair Station Hacks 4 | . . . . . . 2 . . 2 . . . . . . . Scan Component 2 | . . . . . . 1 . . 1 . . . . . . . Repair 2 | . . . . . . 1 . . 1 . . . . . . . Recycling Unit Hacks . | . . . . . . . . . . . . . . . . . Scanalyzer 1 | . . . . . . . . 1 . . . . . . . . Insert Component 1 | . . . . . . . . 1 . . . . . . . . Garrison Access Hacks 2 | . . . . . . . . . . 1 . . . . . 1 Seal Access 1 | . . . . . . . . . . . . . . . . 1 Coupler Status 1 | . . . . . . . . . . 1 . . . . . . Unauthorized Hacks 1 | . . . . . . . . . 1 . . . . . . . Terminals . | . . . . . . . . . . . . . . . . . Fabricators . | . . . . . . . . . . . . . . . . . Repair Stations . | . . . . . . . . . . . . . . . . . Recycling Units . | . . . . . . . . . . . . . . . . . Scanalyzers . | . . . . . . . . . . . . . . . . . Garrison Access 1 | . . . . . . . . . 1 . . . . . . . Reprogram 1 | . . . . . . . . . 1 . . . . . . . Data Cores Recovered . | . . . . . . . . . . . . . . . . . Used . | . . . . . . . . . . . . . . . . . Hacking Detections 18 | . . . . . . 1 . 1 3 3 1 . . 2 . 7 Full Trace Events . | . . . . . . . . . . . . . . . . . Feedback Events . | . . . . . . . . . . . . . . . . . Feedback Blocked . | . . . . . . . . . . . . . . . . . Robot Schematics Acquired . | . . . . . . . . . . . . . . . . . Robots Built . | . . . . . . . . . . . . . . . . . Authchips . | . . . . . . . . . . . . . . . . . Time . | . . . . . . . . . . . . . . . . . Total Robot Build Rating . | . . . . . . . . . . . . . . . . . Part Schematics Acquired . | . . . . . . . . . . . . . . . . . Parts Built . | . . . . . . . . . . . . . . . . . Authchips . | . . . . . . . . . . . . . . . . . Time . | . . . . . . . . . . . . . . . . . Total Part Build Rating . | . . . . . . . . . . . . . . . . . Parts Repaired 2 | . . . . . . 1 . . 1 . . . . . . . Time 79 | . . . . . . 60 . . 19 . . . . . . . Parts Recycled . | . . . . . . . . . . . . . . . . . Recycled Matter . | . . . . . . . . . . . . . . . . . Retrieved Matter . | . . . . . . . . . . . . . . . . . Retrieved Components . | . . . . . . . . . . . . . . . . . Parts Scanalyzed 1 | . . . . . . . . 1 . . . . . . . . Part Schematics Acquired . | . . . . . . . . . . . . . . . . . Parts Damaged . | . . . . . . . . . . . . . . . . . Bothacking | -11 -10 -10 -10 -9 -8 -7 -7 -7 -6 -5 -4 -4 -4 -3 -2 -1 ------------ Run | Scr Mat Min Exi Min Mat Fac Was Fac Fac Fac Fac Upp Upp Res Res Acc Used RIF Installer . | . . . . . . . . . . . . . . . . . Robots Hacked 7 | . . . . . . . . . . . . . . 2 4 1 Non-combat 7 | . . . . . . . . . . . . . . 2 4 1 Combat . | . . . . . . . . . . . . . . . . . Robot Hacks Applied 8 | . . . . . . . . . . . . . . 3 4 1 parse_system 1 | . . . . . . . . . . . . . . 1 . . no_distress 5 | . . . . . . . . . . . . . . 1 3 1 find_recycling 1 | . . . . . . . . . . . . . . 1 . . check_alert 1 | . . . . . . . . . . . . . . . 1 . Relay Couplers Released . | . . . . . . . . . . . . . . . . . Fabnet Peak Effective % . | . . . . . . . . . . . . . . . . . Robots Rewired . | . . . . . . . . . . . . . . . . . Allies Hacked . | . . . . . . . . . . . . . . . . . Hacks Repelled . | . . . . . . . . . . . . . . . . . Allies | -11 -10 -10 -10 -9 -8 -7 -7 -7 -6 -5 -4 -4 -4 -3 -2 -1 -------- Run | Scr Mat Min Exi Min Mat Fac Was Fac Fac Fac Fac Upp Upp Res Res Acc Total Allies . | . . . . . . . . . . . . . . . . . Largest Group . | . . . . . . . . . . . . . . . . . Highest-Rated Group . | . . . . . . . . . . . . . . . . . Highest-Rated Ally . | . . . . . . . . . . . . . . . . . Total Orders . | . . . . . . . . . . . . . . . . . Ally Attacks . | . . . . . . . . . . . . . . . . . Total Damage . | . . . . . . . . . . . . . . . . . Kills . | . . . . . . . . . . . . . . . . . Allies Corrupted . | . . . . . . . . . . . . . . . . . Allies Melted . | . . . . . . . . . . . . . . . . . Intel | -11 -10 -10 -10 -9 -8 -7 -7 -7 -6 -5 -4 -4 -4 -3 -2 -1 ------- Run | Scr Mat Min Exi Min Mat Fac Was Fac Fac Fac Fac Upp Upp Res Res Acc Robot Analysis Total . | . . . . . . . . . . . . . . . . . Derelict Logs Recovered 2 | . . . . 1 . . . . . . . . 1 . . . Drone Launches . | . . . . . . . . . . . . . . . . . Drone Recoveries . | . . . . . . . . . . . . . . . . . Exploration | -11 -10 -10 -10 -9 -8 -7 -7 -7 -6 -5 -4 -4 -4 -3 -2 -1 ------------- Run | Scr Mat Min Exi Min Mat Fac Was Fac Fac Fac Fac Upp Upp Res Res Acc Turns Passed 3802 | 77 98 623 329 54 302 164 34 153 397 257 18 115 30 140 621 390 Spaces Moved 6990 | 60 71 479 273 120 259 246 89 346 731 628 69 438 112 509 1413 1147 Core 25 | 9 . . . 2 12 2 . . . . . . . . . . Treads . | . . . . . . . . . . . . . . . . . Legs 980 | 51 71 479 273 3 103 . . . . . . . . . . . Wheels . | . . . . . . . . . . . . . . . . . Hover . | . . . . . . . . . . . . . . . . . Flight 5985 | . . . . 115 144 244 89 346 731 628 69 438 112 509 1413 1147 Fastest Speed 20 | 50 120 120 120 37 32 32 32 26 29 26 26 26 26 20 20 24 Average Speed 40 | 109 120 120 120 40 92 32 32 29 30 29 26 26 26 20 22 25 Slowest Speed 190 | 120 120 120 120 190 190 150 32 32 112 34 26 26 26 24 25 30 Overloaded Moves . | . . . . . . . . . . . . . . . . . Propulsion Burnouts . | . . . . . . . . . . . . . . . . . Robots Hopped 45 | . . . 2 . 1 7 . 3 6 8 1 2 . 6 3 6 Cave-ins Triggered . | . . . . . . . . . . . . . . . . . Exploration Rate (%) 30 | 4 16 69 64 49 35 8 69 7 20 25 3 66 21 13 25 30 Regions Visited 16 Branch Regions 5 Pre-discovered Areas 1 | . . . . . . . . . . . . . 1 . . . Known Exits Taken 7 | . . . . . 1 . . . . 1 1 1 1 1 1 . Unknown Exits Taken 7 | 1 1 1 1 1 . . . 1 1 . . . . . . . Scrap Searched 1 | . . . . . . . . . . . . 1 . . . . Spaces Dug . | . . . . . . . . . . . . . . . . . Terrain Destroyed 42 | . . 7 . . . . . . . . . . . . 35 . Melee . | . . . . . . . . . . . . . . . . . Projectile . | . . . . . . . . . . . . . . . . . AOE 42 | . . 7 . . . . . . . . . . . . 35 . Terrain Rammed . | . . . . . . . . . . . . . . . . . Walls Destroyed . | . . . . . . . . . . . . . . . . . Machines Disabled . | . . . . . . . . . . . . . . . . . Actions | -11 -10 -10 -10 -9 -8 -7 -7 -7 -6 -5 -4 -4 -4 -3 -2 -1 --------- Run | Scr Mat Min Exi Min Mat Fac Was Fac Fac Fac Fac Upp Upp Res Res Acc Total 7832 | 68 76 521 273 125 302 321 93 389 897 692 67 436 112 535 1700 1225 Wait 695 | 1 . 35 1 1 8 70 3 35 152 65 . 1 1 15 262 45 Move 6890 | 59 70 478 268 119 256 233 88 339 718 612 66 433 111 498 1407 1135 Hop 39 | . . . 2 . 1 6 . 3 6 7 1 2 . 4 2 5 Pick Up 28 | 2 2 4 1 . 2 1 . 2 2 1 . . . 3 2 6 Fast Attach 54 | 6 . 1 . . 4 7 1 3 9 1 . . . 4 8 10 Attach 23 | . . . . 2 5 1 1 1 . 2 . . . 4 4 3 Detach 9 | . . . . 1 1 1 . . . . . . . 2 3 1 Swap 10 | . . . . 1 . . . . 3 2 . . . . 2 2 Drop 29 | . . . 1 1 . 2 . 1 7 2 . . . 2 2 11 Fire 24 | . 4 3 . . 10 . . 5 . . . . . . 2 . Melee 16 | . . . . . . . . . . . . . . 3 6 7 Ram 1 | . . . . . 1 . . . . . . . . . . . Kick 14 | . . . . . 14 . . . . . . . . . . . Crush . | . . . . . . . . . . . . . . . . . Escape Stasis . | . . . . . . . . . . . . . . . . . Rewire . | . . . . . . . . . . . . . . . . . Trap . | . . . . . . . . . . . . . . . . . Miscellaneous . | . . . . . . . . . . . . . . . . . Route ------- -11/Scrapyard -10/Materials -10/Mines (discovered 2 exits: [*Mat] / *Exi) -10/Exiles -9/Mines -8/Materials (discovered 3 exits: *Fac x2 / Sto) -7/Factory -7/Waste -7/Factory -6/Factory (discovered 2 exits: *Fac / DSF) -5/Factory -4/Factory -4/Upper Caves -4/Upper Caves -3/Research -2/Research -1/Access To Epsilon Eridani History --------- Turn | Location | Event 12 | -11/Scrapyard | Discovered new exit (range 16) 78 | -11/Scrapyard | Entered Materials 108 | -10/Materials | Discovered new exit (range 15) 176 | -10/Materials | Entered Mines 241 | -10/Mines | Discovered new exit (range 10) 263 | -10/Mines | A weapon hastily lodged in a ceiling crevice suddenly fell to the ground 307 | -10/Mines | Build established: Mutant 309 | -10/Mines | Found a damaged Exp. Sensor Array with a note attached 312 | -10/Mines | Found Prototype Device 312 | -10/Mines | Identified Exp. Sensor Array 793 | -10/Mines | Deemed a non-threat by the Exiles lab entrance 794 | -10/Mines | Discovered new exit (range 5) 799 | -10/Mines | Entered Exiles 829 | -10/Exiles | Met 8R-AWN 847 | -10/Exiles | Met EX-HEX 882 | -10/Exiles | Met EX-BIN 899 | -10/Exiles | Aligned with FarCom system 900 | -10/Exiles | Given EX-Vault access code 976 | -10/Exiles | Opened EX-Vault 984 | -10/Exiles | Found Field Lobotomy Kit 1011 | -10/Exiles | Warned to stay clear of 0b10 Research branches 1026 | -10/Exiles | Exiles lab attacked by MAIN.C 1115 | -10/Exiles | Discovered new exit (range 14) 1128 | -10/Exiles | Left Exiles lab with Field Lobotomy Kit 1128 | -10/Exiles | Entered Mines 1129 | -9/Mines | Assembled infested the area 1134 | -9/Mines | Assisted by a Guerilla fighting off Assembled 1145 | -9/Mines | Received a Rocket Launcher from a helpful Derelict 1148 | -9/Mines | Learned 4 Materials zone layouts 1175 | -9/Mines | Lost 3 parts (2n1w) 1176 | -9/Mines | Discovered new exit (range 15) 1182 | -9/Mines | Entered Materials 1182 | -8/Materials | Evolved 4 slots: Propulsion x2, Utility x2 1183 | -8/Materials | Identified exit to Storage 1183 | -8/Materials | Identified exit to Factory 1431 | -8/Materials | Core integrity fell below 50% 1461 | -8/Materials | Lost 7 parts (1p1n1u4w) 1478 | -8/Materials | Discovered exit to Factory (range 9) 1484 | -8/Materials | Entered Factory 1484 | -7/Factory | Evolved 2 slots: Utility x2 1605 | -7/Factory | Repaired Imp. VTOL Module 1648 | -7/Factory | Sucked down chute 1648 | -7/Factory | Entered Waste 1655 | -7/Waste | Spotted C-40 Crusher 1663 | -7/Waste | EMP discharged 1666 | -7/Waste | Spotted C-40 Crusher 1666 | -7/Waste | Spotted C-40 Crusher 1666 | -7/Waste | Spotted C-40 Crusher 1671 | -7/Waste | Spotted C-40 Crusher 1671 | -7/Waste | Spotted C-40 Crusher 1679 | -7/Waste | Discovered new exit (range 10) 1682 | -7/Waste | Entered Factory 1822 | -7/Factory | Discovered new exit (range 10) 1835 | -7/Factory | Entered another Factory area 1835 | -6/Factory | Evolved 2 slots: Utility x2 1905 | -6/Factory | Build established: Sprinter 1966 | -6/Factory | Repaired Cesium-ion Thruster 2009 | -6/Factory | Identified exit to DSF 2228 | -6/Factory | Discovered new exit (range 14) 2232 | -6/Factory | Entered another Factory area 2232 | -5/Factory | Evolved 2 slots: Propulsion x1, Utility x1 2472 | -5/Factory | Discovered new exit (range 14) 2488 | -5/Factory | Identified exit to Factory 2489 | -5/Factory | Entered another Factory area 2489 | -4/Factory | Evolved 2 slots: Power x1, Utility x1 2506 | -4/Factory | Discovered new exit (range 7) 2507 | -4/Factory | Identified exit to Upper Caves 2507 | -4/Factory | Entered Upper Caves 2612 | -4/Upper Caves | Encountered a Warlord checkpoint 2617 | -4/Upper Caves | Build established: Hacker-Sprinter 2618 | -4/Upper Caves | Discovered new exit (range 6) 2620 | -4/Upper Caves | Identified exit to Upper Caves 2622 | -4/Upper Caves | Entered another Upper Caves area 2623 | -4/Upper Caves | Learned location of Testing (-3) 2650 | -4/Upper Caves | Discovered new exit (range 6) 2651 | -4/Upper Caves | Identified exit to Research 2652 | -4/Upper Caves | Entered Research 2652 | -3/Research | Evolved 2 slots: Propulsion x1, Utility x1 2791 | -3/Research | Discovered new exit (range 8) 2792 | -3/Research | Identified exit to Research 2792 | -3/Research | Entered another Research area 2792 | -2/Research | Evolved 2 slots: Propulsion x1, Utility x1 2834 | -2/Research | Identified exit to DSF 3071 | -2/Research | Spotted B-90 Cyclops 3130 | -2/Research | Found Prototype Processor 3130 | -2/Research | Identified Exp. Melee Analysis Suite 3161 | -2/Research | Lost 3 parts (3u) 3408 | -2/Research | Discovered new exit (range 11) 3410 | -2/Research | Identified exit to Access 3413 | -2/Research | Entered Access 3413 | -1/Access | Evolved 2 slots: Power x1, Utility x1 3528 | -1/Access | Found Prototype Hackware 3528 | -1/Access | Identified Exp. System Shield 3681 | -1/Access | Lost 4 parts (1p1n2w) 3802 | -1/Access | Discovered new exit (range 6) 3803 | -1/Access | Identified exit to Surface 3803 | *** | Escaped! Last Messages --------------- >>Query(MAIN.C) Ha ha ha. 03717_ Connecting with Terminal... 03722_ Acquired Adv. Melee Analysis Suite. 03738_ ALERT: Rogue bot located, Programmers report to Access Zone 9L. 03740_ &/RPNU6E|WTD,BV%HI9AADU1=ZZEV0&T 03759_ System corrupted: Energy discharge (-266). 03779_ Dropped Imp. Diametric Drive. 03779_ Acquired Prototype Flight Unit. 03779_ Identified Exp. Q-thruster. 03781_ Dropped Adv. Melee Analysis Suite. 03781_ Acquired Imp. Diametric Drive. 03797_ Connecting with Recycling Unit... 03801_ Connecting with Terminal... >>Open(Door) Sealed Barrier opened. 03802_ The Access Shell folds into the floor. 03802_ EXIT=FOUND 03803_ EXIT=IDENTIFIED: SURFACE [Achievement: Epsilon Run] Map ----- +----------------------------------------------------+ | ############+### """???????????????????????????? | | ?????????? ? """???????????????????????????? | | ???????? #? """???????????????????????????? | | ?????? #?? ""????????????????????????????? | | ?????# #??? ????????????????????????????? | | ?????# #???? ????????????????????????????? | | ?????# #????? ???????????????????????????? | | ?????# #?????????????????????????????????? | | ?????# #?????????????????????????????????? | | ?????###########?????????????????????????????????? | | ?????????????????????????????????????????????????? | | ######???????????????????????????????????????????? | | #???????????????????????????????????????????? | | #???????????????????????????????????????????? | | " #???????????????BB????BB????????????????????? | | """ #???????????????BB????BB????????????????????? | | "" #???????????????????????????????????????????? | | " #???????????????????????????????????????????? | | #???????????????????????????????????????????? | | #???????????????????????????????????????????? | | #??########???#""""""""""#??????????????????? | | ####+#? #???# #??????????????????? | | ## #???# #??????????????????? | | #### ## "" #???# #??????????????????? | | # ##""" #???# "" #??????????????????? | | # ##"T #???# "@ #??????????????????? | | # ##""" #???# #??????????????????? | | # ## "" = #???# #??????????????????? | | # #?? #???# #??????????????????? | | # #???? ???## ##?????????????????? | | # #######+#????# #?????????????????? | | + #????##"" ##?????????????????? | | # #?????#"" #??????????????????? | | ######## #?????#"" #???????o??????????? | | #??????# #?????#T #??????????????????? | | #??????# #?????#"" #??????????????????? | | #??????# #?????#"" #??????????????????? | | ########### #######"" ##?????????????????? | | ???????????? | | ???????????? | | ?#############+######################????????????? | | ????# #???????????????????????????????? | | ????# #???????????????????????????????? | | ????# " ""#???????????????????????????????? | | ????# """" ""#???????????????????????????????? | | ????# """"" ""#???????????????????????????????? | | ????# ? """"" Y"#???????????????????????????????? | | ??????? """" ""#???????????????????????????????? | | ???????? " ""#???????????????????????????????? | | ???????? ""#???????????????????????????????? | +----------------------------------------------------+ Best States ------------- Heat Dissipation 52 Energy Generation 38 Energy Capacity 725 Matter Stores 300 Matter Capacity 300 Sight Range 16 Robot Scan Range 20 Terrain Scan Density 85 Jamming Range 12 Additional Mass Support 12 Resistance: EM 25 Melee Speed Boost 20 Evasion (%) 66 Targeting Accuracy 8 Melee Accuracy 14 Launcher Accuracy 30 Target Analysis 10 Offensive Hacking 22 Defensive Hacking 36 Item Schematics ----------------- None Robot Schematics ------------------ None Fabricated ------------ Nothing Alien Tech Used ----------------- None Achievements -------------- Epsilon Run Challenges ------------ None Game ------ Seed BurstBombardmentTearclaws Manual? 0 Play Time 01:25:53 Cumulative 25.1 hours Start 2022.09.13 @ 19:52:21 End 2022.09.14 @ 17:57:53 Sessions 5 Manual Loads 0 Difficulty Rogue Special Mode None Game No. 36 Rogue 35 Adventurer 1 Explorer 0 Win Type 0 Total 1 Types 1/0/0/0/0/0/0/0/0 Lore% 26 Gallery% 31 Achievement% 27 Wizard Run 0 Options --------- ASCII 0 Keyboard 0 Movement Numpad Keybinds 0 Fullscreen 1 Font 18/SmallcapsGlow Map View 76x50 Tactical HUD 1 Map Filters NONE Filters NONE Steam 1 RUN: 69b8fc51-34ef-49a3-8234-5341e37ae65f